[Event "IV Torneo de Semana Santa"]
[Site "Los Llanos de Aridane"]
[Date "2019.04.16"]
[Round "6.4"]
[White "Andres Gonzalez, Ivan"]
[Black "Guerra Arrocha, Daniel"]
[Result "0-1"]
[ECO "C10"]
[WhiteElo "2323"]
[BlackElo "2065"]
[Annotator "RC"]
[PlyCount "102"]
[EventDate "2019.04.13"]
[EventType "swiss"]
[EventCountry "ESP"]
[SourceTitle "playchess.com"]
[Source "ChessBase"]
[SourceQuality "1"]
[TimeControl "5400+30"]

1. e4 {[%emt 0:00:00]} e6 {[%emt 0:03:13]} 2. d4 {[%emt 0:00:00]} d5 {[%emt 0:00:05]} 3. Nc3 {[%emt 0:00:41]} Nc6 {[%emt 0:00:06]} 4. Nf3 {[%emt 0:03:36]} Nf6 {[%emt 0:01:16]} 5. Bd3 {[%emt 0:02:59]} Bb4 {[%emt 0:00:06]} 6. e5 {[%emt 0:02:38]} Ne4 {[%emt 0:00:07]} 7. O-O {[%emt 0:10:35]} Nxc3 {[%emt 0:00:08]} 8. bxc3 {[%emt 0:00:06]} Bxc3 {[%emt 0:00:03]} 9. Rb1 {[%emt 0:00:17]} h6 {[%emt 0:06:51]} 10. Ba3 {[%emt 0:01:39]} a5 {[%emt 0:00:05]} 11. Bb5 {[%emt 0:19:39]} Bd7 {[%emt 0:00:42]} 12. Qd3 {[%emt 0:00:33]} Bb4 {[%emt 0:00:15]} 13. Bc1 {[%emt 0:00:09]} b6 {[%emt 0:04:13]} 14. c3 {[%emt 0:02:36]} Be7 {[%emt 0:00:19]} 15. Qe3 {[%emt 0:00:53]} Na7 {[%emt 0:02:42]} 16. Bd3 {[%emt 0:00:29]} c5 {[%emt 0:00:10]} 17. Qf4 {[%emt 0:01:20]} c4 {[%emt 0:00:25]} 18. Bc2 {[%emt 0:00:32]} g5 {[%emt 0:01:11]} 19. Qg3 {[%emt 0:01:24]} Nb5 {[%emt 0:02:15]} 20. Nd2 {[%emt 0:01:15]} Ba3 {[%emt 0:06:35]} 21. f4 {[%emt 0:05:14]} Bxc1 {[%emt 0:02:31]} 22. Rbxc1 {[%emt 0:00:37]} Na3 {[%emt 0:06:34]} 23. Bd1 {[%emt 0:03:57]} Rh7 {[%emt 0:00:35]} 24. Bh5 {[%emt 0:01:53]} Qe7 {[%emt 0:00:26]} 25. Nb1 {[%emt 0:01:43]} Nb5 {[%emt 0:02:50]} 26. Rc2 {[%emt 0:00:54]} O-O-O {[%emt 0:01:26]} 27. Rb2 {[%emt 0:01:51]} Kc7 {[%emt 0:00:30]} 28. f5 {[%emt 0:01:19]} exf5 {[%emt 0:01:17]} 29. a4 {[%emt 0:07:32]} Na7 {[%emt 0:02:20]} 30. Nd2 {[%emt 0:02:29]} f4 {[%emt 0:01:45]} 31. Qe1 {[%emt 0:00:28]} Nc8 {[%emt 0:01:59]} 32. Bf3 {[%emt 0:02:18]} Be6 {[%emt 0:00:25]} 33. Nxc4 {[%emt 0:00:47]} g4 {[%emt 0:02:23]} 34. Nxb6 {[%emt 0:02:26]} Nxb6 {[%emt 0:03:11]} 35. Qb1 {[%emt 0:01:21]} Rhh8 {[%emt 0:02:05]} 36. c4 {[%emt 0:02:39]} gxf3 {[%emt 0:05:23]} 37. cxd5 {[%emt 0:00:37]} Bxd5 {[%emt 0:04:32]} 38. Rxb6 {[%emt 0:03:20]} Qa3 {[%emt 0:00:07]} 39. Rc1+ {[%emt 0:06:30]} Qxc1+ {[%emt 0:00:08]} 40. Qxc1+ {[%emt 0:00:01]} Kxb6 {[%emt 0:00:01]} 41. Qc5+ {[%emt 0:00:19]} Kb7 {[%emt 0:00:16]} 42. Qb5+ {[%emt 0:00:45]} Kc8 {[%emt 0:00:26]} 43. gxf3 {[%emt 0:01:25]} Bxf3 {[%emt 0:00:36]} 44. Qxa5 {[%emt 0:00:45]} Kb8 {[%emt 0:00:26]} 45. Qb6+ {[%emt 0:01:26]} Bb7 {[%emt 0:00:46]} 46. a5 {[%emt 0:01:29]} Rdg8+ {[%emt 0:00:05]} 47. Kf1 {[%emt 0:00:38]} Rg6 {[%emt 0:00:01]} 48. Qb3 {[%emt 0:00:38]} Rhg8 {[%emt 0:02:31]} 49. d5 {[%emt 0:00:14]} Rg1+ {[%emt 0:00:04]} 50. Kf2 {[%emt 0:00:12]} R8g2+ {[%emt 0:00:17]} 51. Kf3 {[%emt 0:00:14]} Rg3+ {[%emt 0:00:07]} 0-1

[Event "IV Torneo de Semana Santa"]
[Site "Los Llanos de Aridane"]
[Date "2019.04.16"]
[Round "6.5"]
[White "Acosta Sosa, Juan Manuel"]
[Black "Martin Rodriguez, Pablo"]
[Result "1/2-1/2"]
[ECO "A36"]
[WhiteElo "2287"]
[BlackElo "2002"]
[Annotator "RC"]
[PlyCount "76"]
[EventDate "2019.04.13"]
[EventType "swiss"]
[EventCountry "ESP"]
[SourceTitle "playchess.com"]
[Source "ChessBase"]
[SourceQuality "1"]
[TimeControl "5400+30"]

1. c4 {[%emt 0:00:00]} Nf6 {[%emt 0:00:00]} 2. Nc3 {[%emt 0:00:00]} c5 {[%emt 0:00:14]} 3. g3 {[%emt 0:00:00]} Nc6 {[%emt 0:00:10]} 4. Bg2 {[%emt 0:00:03]} g6 {[%emt 0:00:08]} 5. e4 {[%emt 0:00:29]} Bg7 {[%emt 0:00:09]} 6. Nge2 {[%emt 0:00:07]} O-O {[%emt 0:00:12]} 7. O-O {[%emt 0:00:09]} d6 {[%emt 0:01:24]} 8. d3 {[%emt 0:00:38]} Rb8 {[%emt 0:00:35]} 9. h3 {[%emt 0:01:42]} a6 {[%emt 0:00:11]} 10. f4 {[%emt 0:00:43]} Bd7 {[%emt 0:02:37]} 11. a4 {[%emt 0:00:39]} Ne8 {[%emt 0:04:03]} 12. f5 {[%emt 0:01:38]} Nd4 {[%emt 0:05:00]} 13. Nxd4 {[%emt 0:02:06]} Bxd4+ {[%emt 0:01:49]} 14. Kh1 {[%emt 0:00:23]} b5 {[%emt 0:00:28]} 15. Bh6 {[%emt 0:05:51]} Bg7 {[%emt 0:04:52]} 16. Bxg7 {[%emt 0:01:00]} Kxg7 {[%emt 0:00:10]} 17. axb5 {[%emt 0:02:10]} axb5 {[%emt 0:00:07]} 18. b3 {[%emt 0:04:46]} Bc6 {[%emt 0:09:05]} 19. g4 {[%emt 0:04:35]} g5 {[%emt 0:01:20]} 20. Ra6 {[%emt 0:04:42]} Qd7 {[%emt 0:06:54]} 21. Qa1 {[%emt 0:06:40]} f6 {[%emt 0:00:34]} 22. Nd5 {[%emt 0:01:02]} Bxd5 {[%emt 0:02:31]} 23. exd5 {[%emt 0:00:09]} Nc7 {[%emt 0:01:09]} 24. Ra2 {[%emt 0:00:08]} Ra8 {[%emt 0:02:06]} 25. Rff2 {[%emt 0:00:30]} Kf7 {[%emt 0:04:09]} 26. d4 {[%emt 0:00:09]} cxd4 {[%emt 0:01:56]} 27. Qxd4 {[%emt 0:00:36]} bxc4 {[%emt 0:00:27]} 28. bxc4 {[%emt 0:00:21]} Na6 {[%emt 0:01:13]} 29. Qa1 {[%emt 0:03:13]} Qc8 {[%emt 0:01:02]} 30. Ra5 {[%emt 0:09:38]} Nc5 {[%emt 0:08:42]} 31. Re2 {[%emt 0:12:54]} Rxa5 {[%emt 0:02:44]} 32. Qxa5 {[%emt 0:02:27]} Qb7 {[%emt 0:01:05]} 33. Qc3 {[%emt 0:01:10]} Rb8 {[%emt 0:01:24]} 34. Qe3 {[%emt 0:00:49]} Qa7 {[%emt 0:00:44]} 35. Qd4 {[%emt 0:05:44]} Rb7 {[%emt 0:03:37]} 36. Qe3 {[%emt 0:02:20]} Qa4 {[%emt 0:02:04]} 37. h4 {[%emt 0:01:55]} Qxc4 {[%emt 0:05:52]} 38. hxg5 {[%emt 0:02:36]} Qd3 {[%emt 0:11:44]} 1/2-1/2

[Event "IV Torneo de Semana Santa"]
[Site "Los Llanos de Aridane"]
[Date "2019.04.16"]
[Round "6.6"]
[White "Molina Rodriguez, Borja"]
[Black "Natalicchio Escalante, Nicolas"]
[Result "1/2-1/2"]
[ECO "B15"]
[WhiteElo "2070"]
[BlackElo "2189"]
[Annotator "ChessBase"]
[PlyCount "40"]
[EventDate "2019.04.13"]
[EventType "swiss"]
[EventCountry "ESP"]
[SourceTitle "playchess.com"]
[Source "ChessBase"]
[SourceQuality "1"]
[TimeControl "5400+30"]

1. e4 {[%emt 0:00:11]} c6 {[%emt 0:00:00]} 2. Nc3 {[%emt 0:01:03]} d5 {[%emt 0:00:05]} 3. Nf3 {[%emt 0:00:59]} Bg4 {[%emt 0:05:41]} 4. d4 {[%emt 0:01:48]} dxe4 {[%emt 0:06:02]} 5. Nxe4 {[%emt 0:00:08]} Nf6 {[%emt 0:04:19]} 6. Nxf6+ {[%emt 0:03:27]} exf6 {[%emt 0:00:58]} 7. Bf4 {[%emt 0:12:43]} Qe7+ {[%emt 0:06:03]} 8. Qe2 {[%emt 0:14:33]} Bxf3 {[%emt 0:09:15]} 9. gxf3 {[%emt 0:00:08]} Qxe2+ {[%emt 0:00:14]} 10. Bxe2 {[%emt 0:00:28]} Nd7 {[%emt 0:00:23]} 11. O-O {[%emt 0:00:55]} Nb6 {[%emt 0:04:41]} 12. c4 {[%emt 0:03:49]} O-O-O {[%emt 0:07:22]} 13. Rfd1 {[%emt 0:08:17]} c5 {[%emt 0:14:04]} 14. Bf1 {[%emt 0:14:43]} g6 {[%emt 0:09:37]} 15. Be3 {[%emt 0:06:58]} Nd7 {[%emt 0:11:14]} 16. dxc5 {[%emt 0:03:00]} Nxc5 {[%emt 0:00:43]} 17. Rxd8+ {[%emt 0:02:31]} Kxd8 {[%emt 0:00:05]} 18. Rd1+ {[%emt 0:03:41]} Kc8 {[%emt 0:00:36]} 19. b4 {[%emt 0:03:44]} Ne6 {[%emt 0:01:24]} 20. c5 {[%emt 0:02:11]} Be7 {[%emt 0:03:29]} 1/2-1/2

[Event "IV Torneo de Semana Santa"]
[Site "Los Llanos de Aridane"]
[Date "2019.04.18"]
[Round "6.7"]
[White "Hernandez Leon, Sergio"]
[Black "Bazan Solera, Manuel"]
[Result "1-0"]
[ECO "A45"]
[WhiteElo "2157"]
[BlackElo "1923"]
[Annotator "ChessBase"]
[PlyCount "93"]
[EventDate "2019.04.13"]
[EventType "swiss"]
[EventCountry "ESP"]
[SourceTitle "playchess.com"]
[Source "ChessBase"]
[SourceQuality "1"]
[TimeControl "5400+30"]

1. d4 {[%emt 0:00:00]} Nf6 {[%emt 0:00:00]} 2. Bg5 {[%emt 0:00:00]} Ne4 {[%emt 0:00:00]} 3. Bf4 {[%emt 0:00:00]} g6 {[%emt 0:00:05]} 4. f3 {[%emt 0:00:32]} Nf6 {[%emt 0:00:08]} 5. e4 {[%emt 0:00:31]} Bg7 {[%emt 0:00:05]} 6. Nc3 {[%emt 0:00:09]} d6 {[%emt 0:01:03]} 7. Qd2 {[%emt 0:01:58]} Nc6 {[%emt 0:04:09]} 8. O-O-O {[%emt 0:02:49]} Nh5 {[%emt 0:01:22]} 9. Be3 {[%emt 0:02:04]} e5 {[%emt 0:03:32]} 10. Nge2 {[%emt 0:04:29]} exd4 {[%emt 0:06:20]} 11. Nxd4 {[%emt 0:02:13]} Nxd4 {[%emt 0:00:29]} 12. Bxd4 {[%emt 0:00:59]} Bxd4 {[%emt 0:00:07]} 13. Qxd4 {[%emt 0:00:07]} Qf6 {[%emt 0:00:18]} 14. Qxf6 {[%emt 0:24:38]} Nxf6 {[%emt 0:00:34]} 15. Nb5 {[%emt 0:00:19]} Kd7 {[%emt 0:05:14]} 16. e5 {[%emt 0:01:18]} Ne8 {[%emt 0:00:09]} 17. g3 {[%emt 0:01:54]} a6 {[%emt 0:10:17]} 18. Nc3 {[%emt 0:11:42]} Kc6 {[%emt 0:06:10]} 19. f4 {[%emt 0:09:00]} Be6 {[%emt 0:03:38]} 20. Bg2+ {[%emt 0:10:07]} Kb6 {[%emt 0:01:12]} 21. Rd4 {[%emt 0:00:56]} c5 {[%emt 0:02:52]} 22. Rd2 {[%emt 0:00:44]} dxe5 {[%emt 0:00:46]} 23. fxe5 {[%emt 0:01:31]} Nc7 {[%emt 0:04:26]} 24. Na4+ {[%emt 0:06:00]} Kb5 {[%emt 0:00:54]} 25. b3 {[%emt 0:00:34]} Rab8 {[%emt 0:07:14]} 26. Rd6 {[%emt 0:02:53]} b6 {[%emt 0:00:51]} 27. c4+ {[%emt 0:05:07]} Ka5 {[%emt 0:01:09]} 28. Nb2 {[%emt 0:04:32]} Ne8 {[%emt 0:01:42]} 29. Rd2 {[%emt 0:00:32]} Ng7 {[%emt 0:00:10]} 30. Bd5 {[%emt 0:02:08]} Rbd8 {[%emt 0:06:36]} 31. Kc2 {[%emt 0:01:13]} b5 {[%emt 0:03:36]} 32. a3 {[%emt 0:00:25]} Bf5+ {[%emt 0:00:52]} 33. Kc1 {[%emt 0:00:39]} Rd7 {[%emt 0:10:36]} 34. Nd1 {[%emt 0:00:17]} bxc4 {[%emt 0:01:48]} 35. Bxc4 {[%emt 0:00:18]} Rxd2 {[%emt 0:01:36]} 36. Kxd2 {[%emt 0:00:01]} Rd8+ {[%emt 0:00:08]} 37. Kc3 {[%emt 0:00:08]} Ne6 {[%emt 0:04:14]} 38. Ne3 {[%emt 0:00:33]} Be4 {[%emt 0:00:33]} 39. Rf1 {[%emt 0:00:17]} Rd7 {[%emt 0:00:22]} 40. Rf6 {[%emt 0:00:10]} h5 {[%emt 0:01:17]} 41. Bxe6 {[%emt 0:05:07]} Rd3+ {[%emt 0:01:34]} 42. Kc4 {[%emt 0:00:21]} fxe6 {[%emt 0:04:32]} 43. Rxe6 {[%emt 0:00:47]} Rd4+ {[%emt 0:00:45]} 44. Kxc5 {[%emt 0:00:13]} Bd5 {[%emt 0:01:18]} 45. b4+ {[%emt 0:00:19]} Ka4 {[%emt 0:00:11]} 46. Rxa6+ {[%emt 0:00:04]} Kb3 {[%emt 0:00:14]} 47. Kxd4 {[%emt 0:00:02]} 1-0

[Event "IV Torneo de Semana Santa"]
[Site "Los Llanos de Aridane"]
[Date "2019.04.16"]
[Round "6.8"]
[White "Leon Varela, Luis"]
[Black "Haertl, Siegfried"]
[Result "0-1"]
[ECO "D05"]
[WhiteElo "2154"]
[BlackElo "1911"]
[Annotator "ChessBase"]
[PlyCount "84"]
[EventDate "2019.04.13"]
[EventType "swiss"]
[EventCountry "ESP"]
[SourceTitle "playchess.com"]
[Source "ChessBase"]
[SourceQuality "1"]
[TimeControl "5400+30"]

1. d4 {[%emt 0:04:01]} d5 {[%emt 0:00:00]} 2. Nf3 {[%emt 0:00:09]} Nf6 {[%emt 0:00:06]} 3. e3 {[%emt 0:00:40]} e6 {[%emt 0:01:45]} 4. Bd3 {[%emt 0:01:26]} c5 {[%emt 0:00:31]} 5. b3 {[%emt 0:00:05]} Nc6 {[%emt 0:00:39]} 6. a3 {[%emt 0:00:12]} Be7 {[%emt 0:01:35]} 7. Nbd2 {[%emt 0:02:57]} O-O {[%emt 0:01:15]} 8. Bb2 {[%emt 0:05:22]} b6 {[%emt 0:00:27]} 9. Ne5 {[%emt 0:09:19]} Bb7 {[%emt 0:01:34]} 10. O-O {[%emt 0:00:08]} Rc8 {[%emt 0:09:22]} 11. f4 {[%emt 0:15:13]} Nxe5 {[%emt 0:03:29]} 12. fxe5 {[%emt 0:14:42]} Ne4 {[%emt 0:00:20]} 13. Bxe4 {[%emt 0:00:26]} dxe4 {[%emt 0:00:11]} 14. c4 {[%emt 0:03:58]} Bg5 {[%emt 0:02:22]} 15. Qe2 {[%emt 0:01:10]} Bh6 {[%emt 0:03:33]} 16. Rad1 {[%emt 0:02:58]} Qg5 {[%emt 0:02:02]} 17. Rf4 {[%emt 0:01:20]} cxd4 {[%emt 0:03:47]} 18. Bxd4 {[%emt 0:00:28]} Qe7 {[%emt 0:00:15]} 19. Rg4 {[%emt 0:01:08]} Qxa3 {[%emt 0:00:48]} 20. Ra1 {[%emt 0:00:19]} Qb4 {[%emt 0:02:22]} 21. Ra4 {[%emt 0:20:49]} Qe7 {[%emt 0:01:10]} 22. Rxa7 {[%emt 0:07:08]} Ra8 {[%emt 0:01:02]} 23. Rxb7 {[%emt 0:00:02]} Qxb7 {[%emt 0:00:32]} 24. Nxe4 {[%emt 0:00:02]} Kh8 {[%emt 0:02:42]} 25. Rh4 {[%emt 0:01:36]} Rfd8 {[%emt 0:02:52]} 26. h3 {[%emt 0:02:36]} Qe7 {[%emt 0:01:56]} 27. Rh5 {[%emt 0:01:16]} Rxd4 {[%emt 0:02:27]} 28. exd4 {[%emt 0:00:05]} Ra1+ {[%emt 0:00:23]} 29. Kf2 {[%emt 0:03:11]} Qa3 {[%emt 0:00:40]} 30. Rxh6 {[%emt 0:01:27]} Ra2 {[%emt 0:01:10]} 31. Nd2 {[%emt 0:00:01]} gxh6 {[%emt 0:01:14]} 32. Qd3 {[%emt 0:00:46]} Qc1 {[%emt 0:00:24]} 33. Ke2 {[%emt 0:00:45]} Qg1 {[%emt 0:00:28]} 34. Kf3 {[%emt 0:00:16]} Qd1+ {[%emt 0:03:37]} 35. Ke3 {[%emt 0:00:01]} Qe1+ {[%emt 0:00:25]} 36. Qe2 {[%emt 0:00:33]} Qg3+ {[%emt 0:00:38]} 37. Ke4 {[%emt 0:00:04]} Qg6+ {[%emt 0:00:45]} 38. Ke3 {[%emt 0:00:01]} Qg5+ {[%emt 0:00:38]} 39. Kd3 {[%emt 0:00:04]} Qf5+ {[%emt 0:02:37]} 40. Ke3 {[%emt 0:00:13]} f6 {[%emt 0:02:12]} 41. Qf3 {[%emt 0:02:01]} Qg5+ {[%emt 0:01:49]} 42. Ke4 {[%emt 0:00:24]} f5+ {[%emt 0:00:19]} 0-1

[Event "IV Torneo de Semana Santa"]
[Site "Los Llanos de Aridane"]
[Date "2019.04.16"]
[Round "6.9"]
[White "Navio Lopez, Manuel"]
[Black "Rodriguez Lorenzo, Yadira"]
[Result "1/2-1/2"]
[ECO "A30"]
[WhiteElo "1877"]
[BlackElo "1966"]
[Annotator "NA"]
[PlyCount "90"]
[EventDate "2019.04.13"]
[EventType "swiss"]
[EventCountry "ESP"]
[SourceTitle "playchess.com"]
[Source "ChessBase"]
[SourceQuality "1"]
[TimeControl "5400+30"]

1. Nf3 {[%emt 0:01:41]} Nf6 {[%emt 0:00:00]} 2. b3 {[%emt 0:00:09]} e6 {[%emt 0:00:00]} 3. Bb2 {[%emt 0:00:03]} b6 {[%emt 0:00:00]} 4. e3 {[%emt 0:00:05]} Bb7 {[%emt 0:00:00]} 5. Be2 {[%emt 0:00:08]} c5 {[%emt 0:00:00]} 6. O-O {[%emt 0:00:17]} Be7 {[%emt 0:00:01]} 7. d4 {[%emt 0:00:13]} O-O {[%emt 0:00:18]} 8. c4 {[%emt 0:00:05]} d6 {[%emt 0:00:42]} 9. Nc3 {[%emt 0:00:11]} Ne4 {[%emt 0:03:37]} 10. Nxe4 {[%emt 0:01:01]} Bxe4 {[%emt 0:00:02]} 11. Nd2 {[%emt 0:00:16] A30: Symmetrical English: Double Fianchetto and Hedgehog} Bb7 {[%emt 0:00:10]} 12. Bf3 {[%emt 0:00:07]} Bxf3 {[%emt 0:00:16]} 13. Nxf3 {[%emt 0:00:50]} Nd7 $146 {[%emt 0:00:19]} ({Predecessor:} 13... Bf6 14. Qd2 Qe7 15. Rad1 Rd8 16. Qc2 Na6 17. Bc3 Rac8 18. d5 Nb4 19. Bxf6 Qxf6 {1-0 (49) Gaessner,M-Klueting,R (2127) Germany 2008}) 14. e4 {[%emt 0:00:21]} cxd4 {[%emt 0:00:13]} 15. Nxd4 {[%emt 0:00:48]} Qc7 {[%emt 0:02:12]} 16. Qd2 {[%emt 0:05:14]} a6 {[%emt 0:00:57]} 17. Rad1 {[%emt 0:00:51]} Qb7 {[%emt 0:01:09]} 18. f3 {[%emt 0:01:21]} Rfc8 {[%emt 0:03:05]} 19. Qf2 {[%emt 0:02:46]} Bf6 {[%emt 0:01:34]} 20. Qg3 {[%emt 0:05:27]} Qc7 {[%emt 0:01:22]} 21. Kh1 {[%emt 0:01:44]} Qc5 {[%emt 0:00:26]} 22. Qf2 {[%emt 0:02:19]} b5 {[%emt 0:00:22]} 23. Rc1 {[%emt 0:01:31]} Rab8 {[%emt 0:02:27]} 24. cxb5 {[%emt 0:04:33]} Bxd4 {[%emt 0:00:31]} 25. Rxc5 {[%emt 0:00:10]} Bxf2 {[%emt 0:00:03]} 26. Rxc8+ {[%emt 0:00:12]} Rxc8 {[%emt 0:00:03]} 27. Rxf2 {[%emt 0:00:10]} axb5 {[%emt 0:00:05]} 28. Rd2 {[%emt 0:00:02]} Rc6 {[%emt 0:00:41]} 29. h4 {[%emt 0:00:06]} Kf8 {[%emt 0:01:17]} 30. Kg1 {[%emt 0:00:39]} g6 {[%emt 0:00:26]} 31. Kf2 {[%emt 0:00:05]} Ke7 {[%emt 0:00:01]} 32. Ke3 {[%emt 0:01:09]} e5 {[%emt 0:00:17]} 33. g4 {[%emt 0:01:06]} Nc5 {[%emt 0:00:52]} 34. f4 {[%emt 0:05:29]} exf4+ {[%emt 0:06:33]} 35. Kxf4 {[%emt 0:01:42]} Ne6+ {[%emt 0:00:01]} 36. Ke3 {[%emt 0:00:09]} Nc5 {[%emt 0:00:02]} 37. g5 {[%emt 0:00:18]} Ke6 $14 {[%emt 0:00:29]} 38. Rf2 {[%emt 0:00:30]} Nd7 {[%emt 0:00:14]} 39. Rd2 {[%emt 0:00:27]} Rc5 {[%emt 0:00:34]} 40. Ba3 {[%emt 0:02:14]} Rc3+ {[%emt 0:00:04]} 41. Rd3 {[%emt 0:00:09]} Rxd3+ {[%emt 0:02:08]} 42. Kxd3 {[%emt 0:00:14]} Ne5+ {[%emt 0:00:36]} 43. Ke3 {[%emt 0:00:26]} Nc6 {[%emt 0:01:12]} 44. Kd3 {[%emt 0:01:10]} Ke5 {[%emt 0:00:17]} 45. Ke3 {[%emt 0:00:14]} Ke6 {[%emt 0:01:48]} 1/2-1/2

[Event "IV Torneo de Semana Santa"]
[Site "Los Llanos de Aridane"]
[Date "2019.04.17"]
[Round "7.1"]
[White "Alonso Alvarez, Aitor"]
[Black "Hernandez Leon, Alberto"]
[Result "0-1"]
[ECO "B52"]
[WhiteElo "2284"]
[BlackElo "2280"]
[Annotator "NA"]
[PlyCount "52"]
[EventDate "2019.04.13"]
[EventType "swiss"]
[EventCountry "ESP"]
[SourceTitle "playchess.com"]
[Source "ChessBase"]
[SourceQuality "1"]
[TimeControl "5400+30"]

1. e4 {[%emt 0:00:00]} c5 {[%emt 0:00:00]} 2. Nf3 {[%emt 0:00:00]} d6 {[%emt 0:00:00]} 3. Bb5+ {[%emt 0:00:00]} Bd7 {[%emt 0:00:21]} 4. Bxd7+ {[%emt 0:00:03]} Qxd7 {[%emt 0:00:07]} 5. O-O {[%emt 0:00:37]} Nf6 {[%emt 0:00:20]} 6. Re1 {[%emt 0:07:04]} Nc6 {[%emt 0:00:09]} 7. b3 {[%emt 0:05:16]} g6 {[%emt 0:06:43]} 8. Bb2 {[%emt 0:00:06]} Bg7 {[%emt 0:00:06]} 9. c4 {[%emt 0:00:50]} e5 {[%emt 0:04:00] B52: Sicilian: Moscow Variation with 3...Bd7} 10. Nc3 {[%emt 0:00:34]} (10. a3 O-O 11. d3 Ne8 12. Nc3 Nc7 13. Rb1 Rfb8 14. Nd2 a6 15. Nd5 b5 16. Bc3 Rb7 17. h3 Nxd5 18. exd5 {½-½ (53) Rozentalis,E (2564)-Landa,K (2621) Kallithea 2002}) 10... O-O {[%emt 0:01:00]} 11. d3 {[%emt 0:00:19]} Ne7 {[%emt 0:06:58]} 12. a3 $146 {[%emt 0:00:55]} ({Predecessor:} 12. Nd2 Ne8 13. Qe2 Nc7 14. Nf1 f5 15. exf5 gxf5 16. f4 Ne6 17. fxe5 dxe5 {0-1 (55) Book,E-Gligoric,S Dubrovnik 1950}) 12... h6 {[%emt 0:01:57]} 13. b4 {[%emt 0:00:13]} b6 {[%emt 0:00:05]} 14. b5 {[%emt 0:00:42]} Nh5 {[%emt 0:10:15]} 15. Nd2 {[%emt 0:02:37]} Nf4 {[%emt 0:03:17]} 16. Nf1 {[%emt 0:00:21]} f5 {[%emt 0:09:05]} 17. a4 {[%emt 0:00:27]} g5 {[%emt 0:17:52]} 18. a5 {[%emt 0:01:13]} Neg6 {[%emt 0:02:32]} 19. Ne3 $16 {[%emt 0:02:51]} fxe4 {[%emt 0:02:09]} 20. dxe4 {[%emt 0:01:52]} Nh4 {[%emt 0:00:33]} 21. Nf5 {[%emt 0:45:48]} Nfxg2 {[%emt 0:04:03]} 22. axb6 {[%emt 0:03:01]} Nxe1 {[%emt 0:03:18]} 23. Qd5+ {[%emt 0:04:44]} Kh7 {[%emt 0:01:18]} 24. b7 {[%emt 0:01:18]} Nef3+ {[%emt 0:01:17]} 25. Kf1 {[%emt 0:00:19]} Rab8 {[%emt 0:00:44]} 26. Rxa7 {[%emt 0:04:17]} Nxf5 {[%emt 0:00:44]} 0-1

[Event "IV Torneo de Semana Santa"]
[Site "Los Llanos de Aridane"]
[Date "2019.04.17"]
[Round "7.2"]
[White "Haertl, Siegfried"]
[Black "Fernandez Gonzalez, Sergio"]
[Result "1-0"]
[ECO "A85"]
[WhiteElo "1911"]
[BlackElo "2089"]
[Annotator "NA"]
[PlyCount "81"]
[EventDate "2019.04.13"]
[EventType "swiss"]
[EventCountry "ESP"]
[SourceTitle "playchess.com"]
[Source "ChessBase"]
[SourceQuality "1"]
[TimeControl "5400+30"]

1. d4 {[%emt 0:00:00]} e6 {[%emt 0:00:00]} 2. c4 {[%emt 0:00:00]} b6 {[%emt 0:00:00]} 3. Nf3 {[%emt 0:00:00]} Bb7 {[%emt 0:00:06]} 4. e3 {[%emt 0:00:14]} f5 {[%emt 0:00:07]} 5. Be2 {[%emt 0:00:19]} Nf6 {[%emt 0:00:07]} 6. Nc3 {[%emt 0:00:40]} Be7 {[%emt 0:00:22] A85: Dutch Defence: 2 c4 Nf6 3 Nc3} 7. O-O {[%emt 0:00:41]} O-O {[%emt 0:00:08]} 8. b3 {[%emt 0:00:09]} (8. d5 Na6 9. a3 Nc5 10. b4 Nce4 11. Bb2 Nxc3 12. Bxc3 {1-0 (39) Matlakov,M (2689)-Morozevich,A (2731) Dubai 2014}) 8... a5 {[%emt 0:00:29]} 9. Bb2 {[%emt 0:00:41]} Ne4 $146 {[%emt 0:00:16]} ({Predecessor:} 9... Bb4 10. Na4 Bd6 11. Rc1 Nc6 12. Nd2 Qe8 13. c5 bxc5 14. Nxc5 Bxc5 15. dxc5 Qe7 16. a3 {½-½ (63) Lichmann,P (2314)-Janz,F (2337) Germany 2010}) 10. Nd2 {[%emt 0:03:33]} Nxc3 {[%emt 0:00:55]} 11. Bxc3 {[%emt 0:00:48]} Bf6 {[%emt 0:02:13]} 12. Bf3 {[%emt 0:00:17]} d5 {[%emt 0:03:36]} 13. Qc2 {[%emt 0:05:55]} g6 {[%emt 0:00:52]} 14. a3 {[%emt 0:00:43]} Nd7 {[%emt 0:04:43]} 15. b4 {[%emt 0:02:16]} a4 {[%emt 0:09:33]} 16. Qa2 {[%emt 0:03:02]} c6 {[%emt 0:06:11]} 17. Rac1 {[%emt 0:03:31]} b5 {[%emt 0:00:38]} 18. cxb5 {[%emt 0:01:07]} cxb5 {[%emt 0:00:02]} 19. Be2 {[%emt 0:00:29]} Qb6 {[%emt 0:01:53]} 20. Nf3 {[%emt 0:00:20]} Rac8 {[%emt 0:03:39]} 21. Bd3 {[%emt 0:01:21]} Bc6 {[%emt 0:18:03]} 22. Qe2 {[%emt 0:03:15]} Qb8 {[%emt 0:00:53]} 23. Bb2 {[%emt 0:00:46]} g5 {[%emt 0:12:31]} 24. h3 {[%emt 0:03:11]} h5 {[%emt 0:01:15]} 25. Ne5 {[%emt 0:00:56]} Bxe5 {[%emt 0:03:29]} 26. dxe5 {[%emt 0:00:57]} g4 {[%emt 0:02:37]} 27. Rc2 {[%emt 0:07:26]} Qb7 {[%emt 0:09:47]} 28. Bd4 {[%emt 0:01:11]} Kf7 {[%emt 0:01:16]} 29. Rfc1 {[%emt 0:00:19]} Rh8 {[%emt 0:06:38]} 30. h4 {[%emt 0:02:59]} Rhg8 {[%emt 0:08:11]} 31. Rc3 {[%emt 0:01:44]} Ke7 {[%emt 0:01:06]} 32. Qc2 {[%emt 0:01:00]} Nb8 {[%emt 0:02:11]} 33. g3 {[%emt 0:03:18]} Kd7 {[%emt 0:00:04]} 34. Bxf5 {[%emt 0:01:39]} Rgf8 {[%emt 0:02:35] [#]} 35. Bxe6+ $18 {[%emt 0:07:17]} Kxe6 {[%emt 0:00:02]} 36. Qg6+ {[%emt 0:00:34]} Kd7 {[%emt 0:00:31]} 37. e6+ {[%emt 0:05:28]} Kd6 {[%emt 0:00:23]} 38. e7+ {[%emt 0:01:43]} Kxe7 {[%emt 0:00:04]} 39. Bc5+ {[%emt 0:00:14]} Kd7 {[%emt 0:00:03]} 40. Qd6+ {[%emt 0:00:44]} Ke8 {[%emt 0:00:10]} 41. Qxf8+ {[%emt 0:00:29]} 1-0